bitfinex/quotes_SOLUSD_20260302
["timestamp","ask_amount","ask_price","bid_price","bid_amount"]
[1772487664502,0.6342798,87.668,87.63,4.00130265]
[1772487664701,0.6342798,87.659,87.626,0.59467152]
[1772487665715,0.6342798,87.659,87.631,0.59467152]
[1772487666511,0.6342798,87.665,87.631,0.59467152]
[1772487666910,0.6342798,87.665,87.641,0.59467152]
[1772487667801,0.6342798,87.665,87.642,11.41005454]
[1772487667997,0.6342798,87.665,87.642,12.00472606]
[1772487671705,0.6342798,87.665,87.617,0.14216157]
[1772487671922,0.6342798,87.664,87.631,0.59467152]
[1772487673126,4.00130265,87.69,87.651,0.59467152]
[1772487673330,102.7,87.703,87.661,0.59467152]
[1772487673331,0.28432314,87.699,87.661,0.59467152]
[1772487673827,0.28432314,87.699,87.66,4.00130265]
[1772487673828,28.50774493,87.696,87.663,0.59467152]
[1772487674323,4.00130265,87.69,87.663,0.59467152]
[1772487675107,0.6342798,87.687,87.663,0.59467152]
[1772487675328,0.6342798,87.687,87.665,0.59467152]
[1772487676429,0.6342798,87.693,87.665,0.59467152]
[1772487676936,0.61961474,87.689,87.665,0.59467152]
[1772487677636,0.6252819,87.687,87.659,12.06870173]
[1772487678217,0.6252819,87.687,87.66,0.66097885]
[1772487678728,0.6252819,87.687,87.656,0.66097885]
[1772487680317,28.5065148,87.7,87.661,0.66097885]
[1772487680318,0.6252819,87.699,87.661,0.66097885]
[1772487680517,0.6252819,87.698,87.661,0.66097885]
[1772487683831,0.6252819,87.704,87.663,0.66097885]
[1772487684034,0.6252819,87.699,87.671,0.66097885]
[1772487687039,0.6252819,87.699,87.672,11.40615019]
[1772487687336,0.6252819,87.699,87.673,0.66097885]
[1772487689244,0.6252819,87.699,87.674,11.40589]
[1772487689419,0.6252819,87.699,87.675,0.66097885]
[1772487691134,0.6252819,87.689,87.667,0.66097885]
[1772487691538,0.6252819,87.689,87.653,0.66097885]
[1772487692547,0.6252819,87.689,87.636,1.14108357]
[1772487692548,0.6252819,87.669,87.638,0.66097885]
[1772487693135,0.6252819,87.669,87.641,0.66097885]
[1772487693340,12.03052146,87.679,87.641,0.66097885]
[1772487693652,0.6252819,87.678,87.641,0.66097885]
[1772487695737,0.6252819,87.676,87.643,0.66097885]
[1772487696452,0.6252819,87.682,87.651,0.66097885]
[1772487696651,0.6252819,87.689,87.661,0.66097885]
[1772487697352,0.6252819,87.688,87.661,0.66097885]
[1772487697852,0.6252819,87.679,87.651,12.0698618]
[1772487698037,0.6252819,87.679,87.652,0.66097885]
[1772487700952,0.6252819,87.679,87.653,39.93017922]
[1772487701157,4.00130265,87.69,87.654,0.66097885]
[1772487701158,0.6252819,87.689,87.654,0.66097885]
[1772487701452,0.6252819,87.689,87.641,0.66097885]
[1772487701453,0.6252819,87.679,87.641,0.66097885]
[1772487706361,0.6252819,87.677,87.643,0.66097885]
[1772487708657,0.67512307,87.675,87.636,0.69628978]
[1772487708957,0.67512307,87.669,87.636,0.69628978]
[1772487710261,0.67512307,87.667,87.637,11.41070552]
[1772487710560,0.67512307,87.667,87.638,0.69628978]
[1772487715168,0.67512307,87.667,87.63,4.00130265]
[1772487715169,0.67512307,87.665,87.633,0.69628978]
[1772487716976,0.67512307,87.665,87.631,0.69628978]
[1772487717350,0.67512307,87.663,87.631,0.69628978]
[1772487717549,0.67512307,87.663,87.633,0.69628978]
[1772487720268,0.67512307,87.661,87.635,0.69628978]
[1772487721490,0.67512307,87.664,87.641,0.69628978]
[1772487721777,28.51526108,87.673,87.641,0.69628978]
[1772487721963,0.67512307,87.672,87.641,0.69628978]
[1772487722163,0.67512307,87.671,87.641,0.69628978]
[1772487722572,0.67512307,87.669,87.643,0.69628978]
[1772487727478,11.40667062,87.668,87.643,0.69628978]
[1772487727676,0.67512307,87.667,87.643,0.69628978]
[1772487730288,0.67512307,87.673,87.643,0.69628978]
[1772487730492,0.67512307,87.678,87.645,0.69628978]
[1772487731208,0.67512307,87.697,87.671,0.69628978]
[1772487733590,0.67512307,87.695,87.662,0.69628978]
[1772487735602,0.67512307,87.693,87.664,0.69628978]
[1772487737196,0.65170757,87.698,87.671,0.66729234]
[1772487737396,11.4019885,87.704,87.671,0.66729234]
[1772487737578,11.4019885,87.704,87.673,0.67883842]
[1772487737778,12.07620597,87.704,87.673,0.67883842]
[1772487737988,0.67421747,87.703,87.673,0.67883842]
[1772487742506,0.67421747,87.701,87.673,0.67883842]
[1772487742688,0.67421747,87.689,87.655,0.67883842]
[1772487744002,0.67421747,87.687,87.659,0.67883842]
[1772487745706,0.67421747,87.687,87.661,0.67883842]
[1772487746013,28.5056213,87.702,87.663,0.67883842]
[1772487746014,11.40346003,87.693,87.663,0.67883842]
[1772487747314,11.40346003,87.693,87.665,0.67883842]
[1772487748716,11.40346003,87.693,87.667,0.67883842]
[1772487749712,4.09915785,87.71,87.666,11.40693085]
[1772487749713,0.67421747,87.706,87.671,0.67883842]
[1772487751711,0.67421747,87.704,87.673,0.67883842]
[1772487752712,0.67421747,87.699,87.658,0.67883842]
[1772487753104,0.67421747,87.699,87.661,0.67883842]
[1772487754609,0.67421747,87.697,87.663,0.67883842]
[1772487755697,0.67421747,87.709,87.681,0.67883842]
[1772487756926,11.40149968,87.708,87.683,0.67883842]
[1772487761327,0.67421747,87.708,87.677,12.08426619]
[1772487761525,0.67421747,87.689,87.651,0.67883842]
[1772487761713,0.67421747,87.699,87.661,0.67883842]
[1772487763141,0.67421747,87.697,87.663,0.67883842]
[1772487766134,0.67421747,87.697,87.641,1.14101847]
[1772487766135,12.07581597,87.707,87.68,3.99915785]
[1772487766331,12.07581597,87.707,87.681,0.67883842]
[1772487766544,0.67421747,87.706,87.681,0.67883842]
[1772487767641,12.07705852,87.705,87.683,0.69257689]
[1772487767830,11.4018585,87.705,87.683,0.69257689]
[1772487768545,0.67520002,87.704,87.666,0.69257689]
[1772487768852,0.67520002,87.704,87.671,0.69257689]
[1772487769437,11.40211851,87.703,87.672,11.40615019]
[1772487769642,0.67520002,87.702,87.673,0.69257689]
[1772487770163,12.07678709,87.708,87.673,0.69257689]
[1772487770456,0.67520002,87.707,87.681,0.69257689]
[1772487771553,0.67520002,87.705,87.683,0.69257689]
[1772487774254,11.4019885,87.704,87.683,0.69257689]
[1772487774452,12.07718852,87.704,87.683,0.69257689]
[1772487775171,11.50126672,87.71,87.691,0.69257689]
[1772487775462,11.50126672,87.71,87.685,0.69257689]
[1772487775463,0.67520002,87.709,87.685,0.69257689]
[1772487778257,0.67520002,87.707,87.685,0.69257689]
[1772487779552,0.67520002,87.707,87.687,0.69257689]
[1772487779958,11.4014685,87.708,87.687,0.69257689]
[1772487780766,0.1,87.72,87.691,0.69257689]
[1772487780971,0.1,87.72,87.688,11.40406897]
[1772487780972,11.39827937,87.733,87.711,0.69257689]
[1772487781153,0.67520002,87.732,87.711,0.69257689]
[1772487781752,0.67520002,87.732,87.701,0.69257689]
[1772487783291,0.67520002,87.73,87.701,0.69257689]
[1772487783698,0.67520002,87.73,87.703,0.69257689]
[1772487784387,0.67520002,87.729,87.692,11.40354878]
[1772487784574,0.67520002,87.729,87.693,0.69257689]
[1772487786406,0.67520002,87.719,87.682,0.69257689]
[1772487787603,0.67520002,87.719,87.683,11.40471927]
[1772487787809,0.67520002,87.719,87.684,0.69257689]
[1772487788416,0.67520002,87.717,87.684,0.69257689]
[1772487789808,11.40016872,87.718,87.691,0.69257689]
[1772487790191,12.07536874,87.718,87.691,0.69257689]
[1772487790908,12.07536874,87.718,87.693,0.69257689]
[1772487791091,0.67520002,87.717,87.69,3.99387743]
[1772487791292,0.67520002,87.717,87.685,0.69257689]
[1772487792905,0.67520002,87.717,87.674,0.69257689]
[1772487793211,0.95952316,87.709,87.669,0.69257689]
[1772487793395,0.67520002,87.706,87.669,0.69257689]
[1772487793596,0.67520002,87.706,87.671,0.69257689]
[1772487794004,0.67520002,87.706,87.66,3.99387743]
[1772487794211,0.67520002,87.699,87.66,3.99387743]
[1772487794395,0.67520002,87.699,87.661,0.69257689]
[1772487795488,0.67520002,87.699,87.624,1.14123984]
[1772487795489,11.40003876,87.719,87.691,0.69257689]
[1772487795709,0.67520002,87.718,87.691,0.69257689]
[1772487797399,0.69496221,87.716,87.691,0.69257689]
[1772487799301,0.65163772,87.714,87.691,0.69257689]
[1772487800924,0.65163772,87.714,87.683,11.40462579]
[1772487801219,0.65163772,87.714,87.684,0.6548317]
[1772487804208,11.40081857,87.713,87.691,0.6548317]
[1772487805818,0.65163772,87.716,87.691,0.6548317]
[1772487807217,11.40055862,87.715,87.691,0.6548317]
[1772487807420,0.65163772,87.714,87.691,0.6548317]
[1772487808625,0.65163772,87.726,87.692,0.6548317]
[1772487808812,0.65163772,87.726,87.701,0.6548317]
[1772487809216,11.39925904,87.725,87.702,11.40224852]
[1772487809431,11.39925904,87.725,87.703,0.6548317]
[1772487810330,29.14738474,87.733,87.703,0.6548317]
[1772487810815,29.14738474,87.733,87.705,0.6548317]
[1772487812224,0.65163772,87.732,87.705,0.6548317]
[1772487813233,11.39847944,87.731,87.705,0.6548317]
[1772487814435,12.05011716,87.731,87.705,0.6548317]
[1772487815619,0.65163772,87.731,87.705,0.6548317]
[1772487817618,11.39860936,87.73,87.705,0.6548317]
[1772487820342,12.05024708,87.73,87.705,0.6548317]
[1772487820641,12.05024708,87.73,87.707,0.6548317]
[1772487822835,0.65163772,87.729,87.707,0.6548317]
[1772487824633,11.39886923,87.728,87.707,0.6548317]
[1772487825641,11.39886923,87.728,87.71,3.99387743]
[1772487825842,11.39886923,87.728,87.711,0.6548317]
[1772487826041,0.65163772,87.727,87.711,0.6548317]
[1772487826346,12.05004157,87.732,87.711,0.6548317]
[1772487826743,0.65163772,87.731,87.711,0.6548317]
[1772487827139,0.65163772,87.739,87.713,0.6548317]
[1772487827336,0.1,87.74,87.713,0.6548317]
[1772487827676,0.1,87.74,87.712,11.40094855]
[1772487827677,0.66913538,87.748,87.721,0.70015864]
[1772487827842,0.66913538,87.748,87.712,0.70015864]
[1772487828051,0.66913538,87.729,87.691,0.70015864]
[1772487828242,0.66913538,87.729,87.692,0.70015864]
[1772487829348,0.66913538,87.727,87.694,0.70015864]
[1772487830133,0.66913538,87.727,87.701,0.70015864]
[1772487831238,0.66913538,87.725,87.703,0.70015864]
[1772487831443,0.66913538,87.725,87.702,11.40224852]
[1772487832048,0.66913538,87.725,87.702,12.10240716]
[1772487833950,12.06852437,87.724,87.703,0.70015864]
[1772487837737,12.06852437,87.724,87.705,0.70015864]
[1772487838053,0.66913538,87.723,87.705,0.70015864]
[1772487839248,0.66913538,87.721,87.701,0.70015864]
[1772487840353,11.39920992,87.726,87.701,0.70015864]
[1772487840656,0.66913538,87.725,87.701,0.70015864]
[1772487842359,12.06852437,87.724,87.703,0.70015864]
[1772487843642,0.66913538,87.723,87.703,0.70015864]
[1772487844435,0.66913538,87.723,87.704,11.4019885]
[1772487844639,0.66913538,87.723,87.705,0.70015864]
[1772487845178,0.66913538,87.721,87.705,0.70015864]
[1772487846851,11.3999088,87.72,87.705,0.70015864]
[1772487847971,0.66913538,87.721,87.706,0.70015864]
[1772487848554,4.09338225,87.75,87.711,0.70015864]
[1772487848555,0.1,87.75,87.711,0.70015864]
[1772487848865,0.1,87.75,87.721,0.70015864]
[1772487848866,0.66913538,87.749,87.721,0.70015864]
[1772487849449,11.49601201,87.75,87.731,0.70015864]
[1772487849450,0.1,87.75,87.731,0.70015864]
[1772487851266,0.1,87.75,87.733,0.70015864]
[1772487851872,0.76913538,87.75,87.733,0.70015864]
[1772487852677,0.66913538,87.749,87.712,0.70015864]
[1772487853472,0.66913538,87.747,87.714,0.70015864]
[1772487859383,0.66913538,87.747,87.687,1.1404199]
[1772487859384,0.71452029,87.739,87.701,0.66908889]
[1772487859564,0.71452029,87.739,87.702,0.66908889]
[1772487861079,0.71452029,87.737,87.702,0.66908889]
[1772487861882,0.71452029,87.729,87.691,0.66908889]
[1772487862286,0.28432314,87.736,87.674,0.66908889]
[1772487862287,0.71452029,87.719,87.674,0.66908889]
[1772487862484,0.71452029,87.699,87.674,0.66908889]
[1772487863262,0.71452029,87.697,87.674,0.66908889]
[1772487864277,0.71452029,87.695,87.668,0.66908889]
[1772487865591,0.71452029,87.689,87.651,0.66908889]
[1772487866286,0.71452029,87.687,87.651,0.66908889]
[1772487867393,4.70790254,87.68,87.651,0.66908889]
[1772487868496,39.91833847,87.679,87.651,0.66908889]
[1772487870997,40.63285876,87.679,87.651,0.66908889]
[1772487871194,40.63285876,87.679,87.623,3.69383402]
[1772487871195,3.99338225,87.67,87.62,15.40620298]
[1772487871512,39.91924905,87.677,87.558,45.68398461]
[1772487871513,0.71452029,87.659,87.608,11.4144552]
[1772487871676,3.99338225,87.64,87.61,30.2]
[1772487871876,0.71452029,87.643,87.61,0.2]
[1772487872287,0.71452029,87.675,87.611,39.94932142]
[1772487872494,0.71452029,87.659,87.611,11.41409183]
[1772487872972,3.99338225,87.65,87.611,11.41409183]
[1772487873178,11.40914328,87.649,87.614,0.66908889]
[1772487873896,39.93200149,87.649,87.614,0.66908889]
[1772487875290,39.93200149,87.649,87.616,0.66908889]
[1772487875291,11.40914328,87.649,87.616,0.66908889]
[1772487876708,0.71452029,87.648,87.616,0.66908889]
[1772487877906,11.40940363,87.647,87.616,0.66908889]
[1772487878593,11.40940363,87.647,87.618,0.66908889]
[1772487879193,0.71452029,87.646,87.618,0.66908889]
[1772487879901,11.40966398,87.645,87.62,0.66908889]
[1772487882699,11.40901312,87.65,87.62,0.66908889]
[1772487883102,0.71452029,87.649,87.62,0.66908889]
[1772487883484,0.71452029,87.649,87.622,0.66908889]
[1772487888911,0.66865564,87.689,87.641,0.28432314]
[1772487889591,0.66865564,87.659,87.632,3.69383402]
[1772487889796,0.66865564,87.659,87.628,0.65440976]
[1772487890594,0.66865564,87.659,87.612,0.9387329]
[1772487890805,0.66865564,87.657,87.615,0.65440976]
[1772487892911,11.40823218,87.656,87.616,11.41344046]
[1772487893098,0.66865564,87.655,87.617,0.65440976]
[1772487895207,39.92881263,87.656,87.617,0.65440976]
[1772487895514,0.66865564,87.692,87.651,0.65440976]
[1772487898313,11.40341874,87.693,87.63,1.1411617]
[1772487898314,0.66865564,87.719,87.671,0.65440976]
[1772487898614,0.66865564,87.719,87.673,0.65440976]
[1772487899910,11.40016872,87.718,87.674,39.920615]
[1772487900114,0.66865564,87.717,87.675,0.65440976]
[1772487900616,3.99338225,87.68,87.64,0.65440976]
[1772487900798,0.66865564,87.679,87.643,0.65440976]
[1772487903003,0.66865564,87.689,87.651,0.65440976]
[1772487903403,28.50353996,87.709,87.653,0.65440976]
[1772487903702,0.66865564,87.697,87.661,0.65440976]
[1772487905909,12.07168428,87.696,87.663,0.65440976]
[1772487906106,0.66865564,87.695,87.663,0.65440976]
[1772487908015,0.66865564,87.693,87.664,12.06160085]
[1772487908217,0.66865564,87.693,87.665,0.65440976]
[1772487910616,0.66865564,87.691,87.666,12.06134061]
[1772487911314,0.66865564,87.691,87.667,0.65440976]
[1772487913731,11.40380887,87.69,87.667,0.65440976]
[1772487913916,12.07246451,87.69,87.667,0.65440976]
[1772487915038,12.07246451,87.69,87.668,12.06108038]
[1772487915208,12.07246451,87.69,87.669,0.65440976]
[1772487915411,0.66865564,87.749,87.683,0.65440976]
[1772487915640,0.66865564,87.748,87.711,0.65440976]
[1772487915929,0.66865564,87.746,87.711,0.65440976]
[1772487916433,0.66865564,87.746,87.713,0.65440976]
[1772487918110,11.39666077,87.745,87.714,11.4006886]
[1772487918307,12.01519608,87.745,87.715,0.62430765]
[1772487918819,0.61853531,87.744,87.715,0.62430765]
[1772487920212,0.1,87.76,87.731,0.62430765]
[1772487920434,0.71853531,87.76,87.741,0.62430765]
[1772487920633,0.71853531,87.76,87.713,3.69383402]
[1772487920634,0.61853531,87.759,87.707,11.4015985]
[1772487920822,0.61853531,87.749,87.707,11.4015985]
[1772487921133,0.61853531,87.739,87.692,0.62430765]
[1772487921340,43.97782746,87.76,87.692,0.62430765]
[1772487921341,0.61853531,87.729,87.692,0.62430765]
[1772487922215,0.61853531,87.728,87.694,0.62430765]
[1772487923211,0.61853531,87.728,87.683,11.40471927]
[1772487923433,0.61853531,87.709,87.676,0.62430765]
[1772487923615,0.61853531,87.709,87.634,45.64435916]
[1772487923616,0.61853531,87.709,87.671,11.40628029]
[1772487923815,39.89567794,87.729,87.671,11.40628029]
[1772487923816,0.61853531,87.699,87.671,11.40628029]
[1772487924434,0.61853531,87.689,87.655,11.40835524]
[1772487924737,0.61853531,87.689,87.655,12.03266289]
[1772487924919,0.61853531,87.689,87.656,0.62430765]
[1772487925120,0.61853531,87.689,87.661,0.62430765]
[1772487926512,0.61853531,87.689,87.662,11.40745134]
[1772487928443,0.61853531,87.689,87.662,12.03175899]
[1772487928638,0.28432314,87.729,87.681,0.62430765]
[1772487928819,0.61853531,87.726,87.681,0.62430765]
[1772487929545,0.61853531,87.709,87.664,39.92516882]
[1772487929748,0.61853531,87.709,87.665,0.62430765]
[1772487930452,0.61853531,87.699,87.654,11.40849248]
[1772487930621,0.61853531,87.689,87.654,11.40849248]
[1772487930942,0.61853531,87.687,87.654,11.40849248]
[1772487931344,0.61853531,87.687,87.643,28.52467944]
[1772487931521,0.61853531,87.687,87.644,11.40979416]
[1772487931721,0.61853531,87.687,87.65,10.70725492]
[1772487933042,0.61853531,87.685,87.651,11.40888295]
[1772487933240,0.61853531,87.685,87.652,0.62430765]
[1772487935638,0.61853531,87.685,87.654,0.62430765]
[1772487936151,0.61853531,87.683,87.65,10.70725492]
[1772487936326,0.61853531,87.679,87.637,0.62430765]
[1772487937437,39.91606221,87.684,87.63,11.41161702]
[1772487937438,0.61853531,87.669,87.63,11.41161702]
[1772487937646,0.61853531,87.669,87.63,22.11887194]
[1772487937841,11.40602009,87.673,87.65,10.70725492]
[1772487938042,45.59595664,87.728,87.66,10.70725492]
[1772487938043,0.61853531,87.678,87.66,10.70725492]
[1772487938641,0.61853531,87.678,87.651,0.62430765]
[1772487939958,0.61853531,87.676,87.65,10.70725492]
[1772487941855,0.61853531,87.676,87.642,0.62430765]
[1772487941856,0.61853531,87.676,87.642,11.40998098]
[1772487942059,0.61853531,87.674,87.631,39.9402038]
[1772487942261,0.61853531,87.674,87.64,10.70725492]
[1772487943250,0.61853531,87.672,87.641,11.41018473]
[1772487946969,0.61853531,87.67,87.641,12.03449238]
[1772487947757,0.61853531,87.67,87.642,0.54171785]
[1772487948062,57.01329665,87.699,87.661,0.54171785]
[1772487948063,0.5746153,87.694,87.661,0.54171785]
[1772487948870,0.5746153,87.694,87.66,10.70725492]
[1772487949047,0.5746153,87.694,87.654,0.54171785]
[1772487949358,0.5746153,87.692,87.654,0.54171785]
[1772487949567,0.5746153,87.692,87.653,11.40851638]
[1772487949762,0.5746153,87.689,87.653,11.40851638]
[1772487950553,0.5746153,87.687,87.65,3.99781145]
[1772487951658,0.5746153,87.687,87.648,11.40927345]
[1772487952975,0.5746153,87.687,87.641,28.52546182]
[1772487952976,0.5746153,87.669,87.632,0.54171785]
[1772487954370,0.5746153,87.669,87.641,0.54171785]
[1772487954958,0.5746153,87.667,87.641,0.54171785]
[1772487955167,0.5746153,87.667,87.627,11.41195585]
[1772487955566,0.5746153,87.659,87.623,11.41247885]
[1772487955761,0.5746153,87.659,87.626,11.41213794]
[1772487956569,0.5746153,87.659,87.622,11.4125932]
[1772487956969,0.5746153,87.659,87.625,26.68701387]
[1772487958371,0.5746153,87.657,87.625,26.68701387]
[1772487958566,0.5746153,87.657,87.625,15.27482506]
[1772487960075,11.40823218,87.656,87.631,0.54171785]
[1772487960274,0.5746153,87.679,87.641,0.54171785]
[1772487961079,0.5746153,87.686,87.661,0.54171785]
[1772487961263,0.5746153,87.695,87.661,0.54171785]
[1772487961465,3.99781145,87.71,87.64,3.99781145]
[1772487961466,0.5746153,87.71,87.681,0.54171785]
[1772487961884,0.5746153,87.71,87.69,3.99781145]
[1772487962062,0.5746153,87.726,87.691,0.54171785]
[1772487962463,0.5746153,87.726,87.692,11.40354878]
[1772487962687,0.5746153,87.726,87.693,0.54171785]
[1772487965263,0.5746153,87.724,87.695,0.54171785]
[1772487966284,11.39951894,87.723,87.697,0.54171785]
[1772487966580,11.39899321,87.728,87.701,0.54171785]
[1772487968379,11.39757003,87.738,87.711,0.54171785]
[1772487968587,0.5746153,87.737,87.711,0.54171785]
[1772487970317,11.39757003,87.738,87.711,0.54171785]
[1772487970318,0.5746153,87.735,87.711,0.54171785]
[1772487971479,0.5746153,87.735,87.697,0.54171785]
[1772487972802,0.5746153,87.733,87.701,0.54171785]
[1772487974296,3.69383402,87.759,87.698,11.40276859]
[1772487974297,0.5746153,87.752,87.721,0.54171785]
[1772487974481,0.5746153,87.758,87.731,0.54171785]
[1772487974680,0.6746153,87.77,87.741,0.54171785]
[1772487974979,0.5746153,87.759,87.723,0.54171785]
[1772487975402,0.5746153,87.759,87.714,0.54171785]
[1772487976312,0.5746153,87.759,87.716,0.54171785]
[1772487976812,0.14216157,87.756,87.71,10.69425001]
[1772487976973,0.14216157,87.756,87.693,3.69383402]
[1772487976974,0.52150173,87.729,87.694,0.54061189]
[1772487978294,10.69425001,87.73,87.696,0.53548395]
[1772487978295,0.56227744,87.727,87.696,0.53548395]
[1772487980499,11.3991291,87.726,87.698,0.53548395]
[1772487980899,11.96140654,87.726,87.698,0.53548395]
[1772487981095,0.56227744,87.726,87.698,0.53548395]
[1772487981297,0.56227744,87.738,87.698,0.53548395]
[1772487981692,0.56227744,87.738,87.694,0.53548395]
[1772487981890,0.56227744,87.729,87.693,11.40336871]
[1772487982095,0.56227744,87.729,87.694,0.53548395]
[1772487982997,39.89604231,87.728,87.694,0.53548395]
[1772487983202,0.56227744,87.719,87.682,0.53548395]
[1772487983400,0.56227744,87.709,87.682,0.53548395]
[1772487985304,0.56227744,87.707,87.683,11.40471927]
[1772487985506,0.56227744,87.707,87.684,0.53548395]
[1772487986399,0.56227744,87.707,87.685,11.40445914]
[1772487987203,0.56227744,87.718,87.686,0.53548395]
[1772487988389,11.40029868,87.717,87.687,11.40419902]
[1772487988691,0.56227744,87.716,87.687,11.93968297]
[1772487989097,0.56227744,87.716,87.688,0.53548395]
[1772487989891,0.56227744,87.716,87.676,0.53548395]
[1772487990097,0.56227744,87.709,87.676,0.53548395]
[1772487990295,0.56227744,87.699,87.676,0.53548395]
[1772487991406,11.39627114,87.748,87.698,0.14216157]
[1772487991611,11.39627114,87.748,87.711,0.53548395]
[1772487992104,0.56227744,87.747,87.711,0.53548395]
[1772487992311,0.28432314,87.736,87.684,1.14045892]
[1772487992516,0.56227744,87.709,87.66,3.99475532]
[1772487992807,0.56227744,87.709,87.661,3.69383402]
[1772487993193,0.56227744,87.709,87.662,0.28432314]
[1772487993387,11.4014685,87.708,87.663,39.92562425]
[1772487993611,0.56227744,87.707,87.663,39.92562425]
[1772487994189,11.4014685,87.708,87.663,39.92562425]
[1772487994190,0.56227744,87.699,87.663,11.40732121]
[1772487994397,39.90513977,87.708,87.663,11.40732121]
[1772487994398,0.56227744,87.689,87.663,11.40732121]
[1772487994607,0.56227744,87.689,87.655,0.04390103]
[1772487994909,0.56227744,87.718,87.681,0.04390103]
[1772487995497,11.96257612,87.717,87.682,0.04269046]
[1772487995698,11.96257612,87.717,87.691,0.04269046]
[1772487996714,11.96257612,87.717,87.681,11.40497941]
[1772487996715,0.56227744,87.716,87.681,11.40497941]
[1772487997999,0.56227744,87.714,87.68,10.70858201]
[1772487998310,11.40055862,87.715,87.691,0.0389792]
[1772487999108,0.56227744,87.725,87.691,0.0389792]
[1772487999814,0.56227744,87.719,87.681,0.03766283]
[1772488000200,11.40016872,87.718,87.681,11.44264224]
[1772488000403,11.3997179,87.722,87.691,0.03636158]
[1772488000601,0.56227744,87.721,87.691,0.03636158]
[1772488001619,0.56227744,87.719,87.683,0.03507527]
[1772488002912,11.39949951,87.724,87.691,0.03380374]
[1772488003103,11.96177695,87.724,87.691,0.03380374]
[1772488004003,0.56227744,87.731,87.692,0.03254682]
[1772488005509,0.56227744,87.729,87.692,0.03254682]
[1772488006215,0.56227744,87.709,87.662,11.43631334]
[1772488006398,0.56227744,87.689,87.652,0.028862]
[1772488006799,0.56227744,87.679,87.644,0.028862]
[1772488008718,0.54897317,87.677,87.644,0.028862]
[1772488010300,0.54897317,87.675,87.644,0.028862]
[1772488010624,11.40562981,87.676,87.644,0.028862]
[1772488010798,0.54897317,87.675,87.644,0.028862]
[1772488013113,11.40589,87.674,87.644,0.028862]
[1772488014026,0.54897317,87.673,87.644,0.028862]
[1772488014726,0.54897317,87.673,87.631,0.28432314]
[1772488016311,0.54897317,87.707,87.66,10.70858201]
[1772488016520,0.54897317,87.707,87.67,3.99579731]
[1772488017622,0.54897317,87.705,87.67,3.99579731]
[1772488017837,0.54897317,87.705,87.66,3.99579731]
[1772488018530,0.54897317,87.705,87.66,10.70393311]
[1772488021537,0.54897317,87.703,87.67,10.70393311]
[1772488022856,0.54897317,87.699,87.66,10.70393311]
[1772488023039,0.54897317,87.689,87.645,3.97815716]
[1772488023435,0.54897317,87.689,87.642,39.93519089]
[1772488024342,0.54897317,87.687,87.642,28.52513635]
[1772488025436,0.54897317,87.669,87.634,11.41109614]
[1772488025639,0.54897317,87.679,87.634,39.93883651]
[1772488026041,0.54897317,87.686,87.635,0.28432314]
[1772488026239,0.54897317,87.686,87.634,39.93883651]
[1772488026240,0.54897317,87.686,87.641,0.28432314]
[1772488026424,11.40445914,87.685,87.642,39.93519089]
[1772488026624,0.54897317,87.684,87.642,39.93519089]
[1772488028643,0.54897317,87.682,87.642,39.93519089]
[1772488028839,0.54897317,87.688,87.642,39.93519089]
[1772488029441,0.54897317,87.679,87.642,39.93519089]
[1772488029741,0.54897317,87.679,87.642,11.41005454]
[1772488029943,39.91389564,87.689,87.642,11.41005454]
[1772488029944,0.54897317,87.669,87.642,11.41005454]
[1772488030239,0.54897317,87.709,87.643,0.28432314]
[1772488030441,0.54897317,87.699,87.643,1.14099243]
[1772488030628,0.54897317,87.679,87.645,39.93382394]
[1772488030823,10.70828375,87.67,87.645,11.40966398]
[1772488031033,0.54897317,87.669,87.645,11.40966398]
[1772488031445,0.54897317,87.669,87.635,11.41096593]
[1772488032540,0.54897317,87.669,87.626,11.69646108]
[1772488033147,0.54897317,87.659,87.626,39.94248281]
[1772488036440,0.54897317,87.658,87.626,39.94248281]
[1772488037742,0.53781379,87.649,87.621,11.41270362]
[1772488038650,0.53781379,87.649,87.61,0.2]
[1772488038651,0.53781379,87.639,87.625,13.66727285]
[1772488038855,4.00139424,87.63,87.61,0.2]
[1772488039151,4.00139424,87.64,87.61,0.2]
[1772488039534,39.93245709,87.648,87.61,0.2]
[1772488039535,4.00139424,87.63,87.61,0.2]
[1772488039851,4.00139424,87.62,87.61,0.2]
[1772488040052,4.00139424,87.64,87.612,0.53339691]
[1772488040448,11.40927345,87.648,87.612,0.53339691]
[1772488040659,11.40927345,87.648,87.614,0.53339691]
[1772488041659,11.40927345,87.648,87.616,0.53339691]
[1772488041868,11.40667062,87.668,87.616,0.53339691]
[1772488042162,39.92334717,87.668,87.616,0.53339691]
[1772488042331,11.40667062,87.668,87.618,0.53339691]
[1772488042537,11.40667062,87.668,87.622,0.53339691]
[1772488043362,11.40667062,87.668,87.631,0.53339691]
[1772488044868,4.00139424,87.67,87.633,0.53339691]
[1772488045169,4.00139424,87.68,87.633,0.53339691]
[1772488047643,4.00139424,87.68,87.635,0.53339691]
[1772488047839,4.00139424,87.69,87.643,0.53339691]
[1772488051265,11.40393892,87.689,87.645,0.53339691]
[1772488052243,4.00139424,87.69,87.645,0.53339691]
[1772488052556,11.40393892,87.689,87.645,0.53339691]